bitfinex/quotes_SOLUSD_20260208
["timestamp","ask_amount","ask_price","bid_price","bid_amount"]
[1770517057871,3.98303297,87.92,87.889,3.59208115]
[1770517058273,0.32418754,87.919,87.889,3.59208115]
[1770517059165,0.32408728,87.917,87.889,3.59208115]
[1770517059875,3.98303297,87.92,87.891,3.59208115]
[1770517060179,0.32398816,87.935,87.891,3.59208115]
[1770517061080,3.98303297,87.94,87.891,3.59208115]
[1770517061276,3.98303297,87.94,87.893,3.59208115]
[1770517061665,3.98303297,87.94,87.901,3.59208115]
[1770517063258,0.3236976,87.939,87.903,3.59208115]
[1770517063464,4.30673057,87.93,87.903,3.59208115]
[1770517064056,4.30673057,87.93,87.868,5.13032502]
[1770517064057,0.32360296,87.929,87.897,3.59208115]
[1770517064359,3.98303297,87.92,87.897,3.59208115]
[1770517064555,0.32360296,87.925,87.897,3.59208115]
[1770517067277,11.37298772,87.928,87.897,3.59208115]
[1770517068579,3.98303297,87.93,87.899,3.59208115]
[1770517068973,4.30617879,87.93,87.899,3.59208115]
[1770517069574,0.32314582,87.929,87.899,3.59208115]
[1770517072193,0.32314582,87.929,87.901,3.59208115]
[1770517072796,11.37205721,87.935,87.903,3.59208115]
[1770517072994,3.98303297,87.94,87.903,3.59208115]
[1770517074487,3.98303297,87.94,87.904,11.37604659]
[1770517074689,0.32271435,87.938,87.905,3.59208115]
[1770517075377,0.322631,87.929,87.891,3.59208115]
[1770517076365,0.322631,87.929,87.893,3.59208115]
[1770517076770,28.4262459,87.947,87.893,3.59208115]
[1770517076771,0.32254861,87.936,87.893,3.59208115]
[1770517076971,3.98303297,87.94,87.893,3.59208115]
[1770517077699,0.32246717,87.939,87.893,3.59208115]
[1770517077876,0.32238667,87.929,87.893,3.59208115]
[1770517078284,0.32238667,87.929,87.894,11.37734088]
[1770517078485,0.32238667,87.929,87.895,3.59208115]
[1770517078703,0.32238667,87.919,87.895,3.59208115]
[1770517080401,0.32222842,87.909,87.885,3.59208115]
[1770517080695,0.32222842,87.909,87.86,3.98303297]
[1770517080696,3.98303297,87.9,87.861,3.59208115]
[1770517081289,0.32222842,87.904,87.872,3.59208115]
[1770517081483,0.32215065,87.889,87.866,3.59208115]
[1770517081799,0.32215065,87.879,87.853,3.59208115]
[1770517082691,3.98303297,87.87,87.84,3.59208115]
[1770517083396,3.98303297,87.86,87.84,3.59208115]
[1770517084493,3.98303297,87.87,87.842,3.59208115]
[1770517087093,3.98303297,87.86,87.842,3.59208115]
[1770517087595,3.98303297,87.87,87.842,3.59208115]
[1770517088589,3.98303297,87.86,87.842,3.59208115]
[1770517089776,3.98303297,87.86,87.81,3.98303297]
[1770517089777,15.3648582,87.86,87.81,3.98303297]
[1770517089977,0.32142049,87.849,87.816,3.65688297]
[1770517090183,3.98303297,87.84,87.816,3.65688297]
[1770517090595,0.32142049,87.849,87.816,3.65688297]
[1770517091277,3.98303297,87.84,87.816,3.65688297]
[1770517093186,0.32142049,87.849,87.808,11.3883657]
[1770517093187,0.32115124,87.829,87.808,3.59208115]
[1770517093394,0.32115124,87.829,87.8,0.1]
[1770517093395,3.98303297,87.82,87.801,3.59208115]
[1770517094599,0.32108585,87.819,87.8,0.1]
[1770517094900,3.98303297,87.81,87.8,0.1]
[1770517095494,0.32108585,87.819,87.8,0.1]
[1770517097200,11.38718713,87.818,87.8,0.1]
[1770517097401,11.38645195,87.824,87.801,3.59208115]
[1770517098108,0.32083171,87.819,87.8,0.1]
[1770517099192,11.38718713,87.818,87.8,0.1]
[1770517099410,11.38622509,87.826,87.801,3.59208115]
[1770517099904,11.3851871,87.834,87.801,3.59208115]
[1770517100608,11.38449257,87.839,87.801,3.59208115]
[1770517101203,11.38449257,87.839,87.8,4.08303297]
[1770517101204,11.38449257,87.839,87.803,3.59208115]
[1770517106202,5.13032502,87.867,87.8,4.08964733]
[1770517106203,11.38323961,87.849,87.811,3.59208115]
[1770517107184,11.38239144,87.855,87.811,3.59208115]
[1770517107401,0.32030107,87.854,87.813,3.59208115]
[1770517107605,11.38172462,87.861,87.821,3.59208115]
[1770517107905,11.70197006,87.861,87.821,3.59208115]
[1770517108598,3.98964733,87.86,87.821,3.59208115]
[1770517109710,11.38187322,87.859,87.823,3.59208115]
[1770517111590,11.70195559,87.859,87.824,11.38640918]
[1770517111892,11.70195559,87.859,87.825,3.59208115]
[1770517113813,0.31992485,87.849,87.825,3.59208115]
[1770517114110,0.31992485,87.849,87.815,3.59208115]
[1770517116614,0.3197727,87.86,87.817,3.68080426]
[1770517116814,0.3197727,87.865,87.821,3.68080426]
[1770517117614,3.98964733,87.86,87.821,3.68080426]
[1770517117814,4.30937047,87.86,87.821,3.68080426]
[1770517118202,4.30937047,87.86,87.822,11.38666848]
[1770517118404,0.31967415,87.858,87.823,3.68080426]
[1770517119707,0.31967415,87.858,87.8,0.1]
[1770517119708,0.31962573,87.839,87.801,3.68080426]
[1770517119899,0.31962573,87.839,87.806,3.68080426]
[1770517120299,0.31957786,87.858,87.811,3.68080426]
[1770517120501,11.38200277,87.858,87.811,3.68080426]
[1770517120807,0.31957786,87.857,87.811,3.68080426]
[1770517122521,0.31957786,87.857,87.813,3.68080426]
[1770517124313,0.31957786,87.857,87.822,11.38666848]
[1770517124520,0.31957786,87.857,87.823,3.68080426]
[1770517125421,0.31957786,87.857,87.824,11.38640918]
[1770517125600,0.31957786,87.857,87.825,3.68080426]
[1770517127225,3.98964733,87.87,87.825,3.68080426]
[1770517127226,0.31925782,87.867,87.825,3.68080426]
[1770517127525,0.31925782,87.871,87.831,3.68080426]
[1770517131126,0.31908623,87.869,87.833,3.68080426]
[1770517134821,0.31908623,87.869,87.835,3.68080426]
[1770517136535,0.31908623,87.869,87.837,3.68080426]
[1770517138820,0.31908623,87.869,87.838,11.38459436]
[1770517139019,0.31908623,87.869,87.839,3.68080426]
[1770517140942,0.3186904,87.859,87.83,15.06632457]
[1770517141142,0.3186904,87.859,87.831,3.68080426]
[1770517142037,3.98964733,87.88,87.8,0.1]
[1770517142038,0.31865327,87.869,87.833,3.68080426]
[1770517142425,0.31865327,87.868,87.833,3.68080426]
[1770517143638,11.37998999,87.874,87.833,3.68080426]
[1770517143836,0.31861657,87.873,87.833,3.68080426]
[1770517147842,0.31840506,87.869,87.835,3.59208115]
[1770517149647,0.31837121,87.877,87.835,3.59208115]
[1770517149851,0.31837121,87.877,87.836,11.38485359]
[1770517150144,0.31837121,87.877,87.837,3.59208115]
[1770517151129,0.31837121,87.877,87.839,3.59208115]
[1770517153255,11.69583044,87.892,87.851,3.59208115]
[1770517153544,0.31820771,87.891,87.851,3.59208115]
[1770517154349,0.31817613,87.897,87.861,3.59208115]
[1770517155546,0.31817613,87.897,87.863,3.59208115]
[1770517158663,0.31805339,87.879,87.854,3.59208115]
[1770517158950,0.31805339,87.879,87.831,3.59208115]
[1770517159761,0.31805339,87.879,87.833,3.59208115]
[1770517161360,0.31805339,87.879,87.835,3.59208115]
[1770517162564,11.3781683,87.888,87.851,3.59208115]
[1770517162943,0.31793619,87.89,87.851,3.59208115]
[1770517164537,3.98622456,87.9,87.853,3.59208115]
[1770517164538,0.31787959,87.896,87.853,3.59208115]
[1770517165071,11.37689494,87.898,87.853,3.59208115]
[1770517165643,0.31785178,87.897,87.853,3.59208115]
[1770517166657,11.69490628,87.896,87.855,3.59208115]
[1770517166856,5.13032502,87.927,87.861,3.59208115]
[1770517166857,0.31779711,87.908,87.861,3.59208115]
[1770517167054,0.31779711,87.899,87.861,3.59208115]
[1770517168661,0.31777024,87.901,87.863,3.59208115]
[1770517168851,0.31774368,87.899,87.863,3.59208115]
[1770517171162,0.31774368,87.899,87.864,11.38122553]
[1770517171463,0.31774368,87.899,87.865,3.59208115]
[1770517172870,0.31774368,87.899,87.867,3.59208115]
[1770517174651,0.3176154,87.897,87.867,3.59208115]
[1770517175373,0.31759063,87.889,87.867,3.59208115]
[1770517176372,0.31754192,87.879,87.854,3.69961729]
[1770517177774,0.31754192,87.879,87.849,3.69961729]
[1770517182373,0.31740237,87.877,87.849,3.69961729]
[1770517188390,0.31727217,87.887,87.851,3.69961729]
[1770517188688,11.37812937,87.888,87.851,3.69961729]
[1770517189183,0.31725134,87.887,87.851,3.69961729]
[1770517189762,0.31725134,87.901,87.861,3.69961729]
[1770517189958,0.31723074,87.899,87.861,3.69961729]
[1770517190259,0.31723074,87.899,87.863,3.69961729]
[1770517191173,11.37658993,87.9,87.863,3.69961729]
[1770517192892,0.31721038,87.904,87.865,3.69961729]
[1770517193667,0.31717036,87.902,87.865,3.69961729]
[1770517194588,0.31715069,87.902,87.865,3.69961729]
[1770517194790,0.31715069,87.909,87.867,3.69961729]
[1770517195374,0.31715069,87.909,87.871,3.69961729]
[1770517196065,0.31711203,87.929,87.881,3.69961729]
[1770517197073,0.31709303,87.927,87.883,3.69961729]
[1770517199287,5.13032502,87.957,87.885,3.69961729]
[1770517199288,0.31705569,87.919,87.885,3.69961729]
[1770517200372,0.31703734,87.949,87.911,3.69961729]
[1770517200987,0.3170192,87.945,87.911,3.69961729]
[1770517201182,0.3170192,87.943,87.911,3.69961729]
[1770517201493,0.3170192,87.949,87.913,3.69961729]
[1770517203599,0.3170192,87.949,87.915,3.69961729]
[1770517203990,0.2,87.95,87.915,3.69961729]
[1770517204291,0.2,87.95,87.914,11.37475259]
[1770517204292,0.2,87.97,87.941,3.69961729]
[1770517204490,0.2,87.97,87.95,3.98622456]
[1770517204689,0.2,87.97,87.94,3.98622456]
[1770517206088,0.43681814,87.969,87.941,11.37126027]
[1770517206476,0.2,87.97,87.942,3.53212941]
[1770517208177,0.2,87.97,87.951,3.53212941]
[1770517209294,0.2,87.97,87.923,5.13032502]
[1770517209295,0.2,87.99,87.961,3.45087459]
[1770517209499,0.2,87.99,87.971,3.45087459]
[1770517211504,0.2,87.99,87.973,3.45087459]
[1770517211709,0.1,88.01,87.973,3.45087459]
[1770517211710,0.1,88.02,87.973,3.45087459]
[1770517211881,0.1,88.02,88.011,3.45087459]
[1770517212078,0.9368682,88.02,87.985,3.45087459]
[1770517212279,0.9368682,88.02,87.973,3.57393765]
[1770517212280,0.8368682,88.009,87.973,3.57393765]
[1770517212787,0.83690066,87.999,87.96,3.57393765]
[1770517213196,0.83690066,87.999,87.961,3.57393765]
[1770517213392,0.83693275,88.009,87.961,3.57393765]
[1770517214283,0.83693275,88.009,87.971,3.57393765]
[1770517214883,0.83693275,88.009,87.973,3.57393765]
[1770517215387,0.1,88.02,87.991,3.57393765]
[1770517216000,1e-08,88.03,88.001,3.57393765]
[1770517217117,3.98622457,88.03,88.003,3.57393765]
[1770517217287,1e-08,88.03,88.003,3.57393765]
[1770517217704,3.98622457,88.03,88.003,3.57393765]
[1770517219007,4.9236713,88.03,88.004,14.9370575]
[1770517219313,3.98622457,88.03,88.005,3.57393765]
[1770517220088,3.98622457,88.03,88.007,3.57393765]
[1770517221492,3.98622457,88.03,88.009,3.57393765]
[1770517221493,3.97233367,88.03,88.009,3.57393765]
[1770517222011,3.97233366,88.02,88.003,3.57393765]
[1770517222312,0.93768633,88.029,88.007,11.36269732]
[1770517222712,3.97233367,88.03,88.007,11.36269732]
[1770517222713,3.97233367,88.03,88.008,3.57393765]
[1770517223807,3.97233366,88.02,87.997,3.57393765]
[1770517224117,4.91033384,88.02,87.997,3.57393765]
[1770517224319,3.97233366,88.02,87.997,3.57393765]
[1770517225214,3.97233366,88.02,88.0,3.57393765]
[1770517227099,1e-08,88.03,88.0,3.57393765]
[1770517227416,1e-08,88.03,87.983,5.13032502]
[1770517227417,1e-08,88.03,88.002,3.57393765]
[1770517229710,1e-08,88.03,88.004,3.57393765]
[1770517230298,3.97233367,88.03,88.004,3.57393765]
[1770517230713,1e-08,88.03,88.004,3.57393765]
[1770517231699,1e-08,88.03,88.006,3.57393765]
[1770517232720,3.97233367,88.03,88.006,3.57393765]
[1770517232898,0.93878583,88.029,88.006,3.57393765]
[1770517233522,3.97233367,88.03,88.006,3.57393765]
[1770517233703,1e-08,88.03,88.006,3.57393765]
[1770517233897,3.97233367,88.03,88.008,3.57393765]
[1770517235121,3.97233367,88.03,88.01,3.57393765]
[1770517236231,3.97233367,88.03,88.012,3.58557982]
[1770517237718,1e-08,88.03,88.012,3.58557982]
[1770517238103,1e-08,88.03,88.014,3.58557982]
[1770517239603,1e-08,88.04,88.015,3.58557982]
[1770517240203,1e-08,88.04,88.017,3.58557982]
[1770517240803,3.97233367,88.04,88.017,3.58557982]
[1770517242316,3.97233367,88.04,88.019,3.58557982]
[1770517243016,1e-08,88.04,88.019,3.58557982]
[1770517244332,3.97233366,88.05,88.021,3.58557982]
[1770517245236,3.97233366,88.04,88.021,3.58557982]
[1770517246146,0.93999753,88.049,88.02,11.3610543]
[1770517246147,0.93999753,88.049,88.022,3.58557982]
[1770517246329,3.97233366,88.05,88.024,3.58557982]
[1770517247841,3.97233366,88.04,88.024,3.58557982]
[1770517248220,3.97233366,88.05,88.024,3.58557982]
[1770517248524,3.97233366,88.04,88.026,3.58557982]
[1770517250534,3.97233366,88.04,88.028,3.58557982]
[1770517251535,3.97233366,88.04,88.022,3.58557982]
[1770517254237,3.97233366,88.04,88.024,3.58557982]
[1770517255431,0.94067914,88.054,88.024,3.58557982]
[1770517255638,3.97233366,88.05,88.024,3.58557982]
[1770517257244,3.97233366,88.04,88.024,3.58557982]
[1770517257825,3.97233366,88.04,88.025,11.36040897]
[1770517258025,3.97233366,88.04,88.026,3.58557982]
[1770517260046,3.97233366,88.05,88.028,3.58557982]
[1770517260646,0.1,88.06,88.028,3.58557982]
[1770517260941,4.07233366,88.06,88.028,3.58557982]
[1770517261640,3.97233366,88.05,88.028,3.58557982]
[1770517261841,3.97233366,88.05,88.012,56.8100253]
[1770517261842,0.9412283,88.039,88.02,11.36103397]
[1770517262033,3.97233366,88.03,88.011,3.58557982]
[1770517262220,3.97233366,88.02,88.011,3.58557982]
[1770517262417,3.97233366,88.02,88.013,11.36195789]
[1770517262738,3.97233366,88.03,88.014,3.58557982]
[1770517262933,3.97233366,88.02,88.014,3.58557982]
[1770517263335,3.97233366,88.02,88.003,11.36322252]
[1770517263546,3.97233366,88.01,87.976,28.41655478]
[1770517263729,3.97233366,88.02,87.976,28.41655478]
[1770517263929,3.97233366,88.01,87.976,28.41655478]
[1770517265243,3.97233366,88.01,87.977,3.58557982]
[1770517265630,3.6815323,88.019,87.977,3.58557982]
[1770517266345,3.97233366,88.01,87.979,3.64271653]
[1770517266548,3.97233366,88.0,87.979,3.64271653]
[1770517266847,3.74002906,88.009,87.979,3.64271653]
[1770517267144,3.97233366,88.01,87.979,3.64271653]
[1770517267450,3.74002906,88.019,87.979,3.64271653]
[1770517267625,3.97233366,88.01,87.979,3.64271653]
[1770517268651,3.97233366,88.01,87.981,3.64271653]
[1770517268945,3.74002906,88.009,87.981,3.64271653]
[1770517269154,3.97233366,88.0,87.98,11.36621959]
[1770517269452,3.97233366,88.01,87.981,3.64271653]
[1770517269641,3.74002906,88.019,87.981,3.64271653]
[1770517269838,3.97233366,88.01,87.981,3.64271653]
[1770517270444,3.97233366,88.02,87.982,39.78086425]
[1770517270649,3.74002906,88.019,87.983,3.64271653]
[1770517271829,3.74002906,88.019,87.985,3.64271653]
[1770517272348,3.97233366,88.01,87.985,3.64271653]
[1770517272656,3.74002906,88.019,87.985,3.64271653]
[1770517273731,3.97233366,88.01,87.985,3.64271653]
[1770517274237,3.97233366,88.01,87.987,3.73328762]
[1770517274560,3.74002906,88.019,87.988,3.73328762]
[1770517274940,3.97233366,88.01,87.988,3.73328762]
[1770517276665,3.97233366,88.01,87.99,3.73328762]
[1770517277865,3.53119718,87.999,87.984,11.36565986]
[1770517278071,7.50353084,87.99,87.977,11.36651749]
[1770517278365,3.53119718,88.005,87.991,11.36479867]
[1770517278690,3.53119718,87.999,87.973,3.73328762]
[1770517278852,3.97233366,87.98,87.973,3.73328762]
[1770517279038,3.97233366,87.99,87.973,3.73328762]
[1770517279662,3.97233366,87.99,87.975,3.73328762]
[1770517281666,3.97233366,87.99,87.976,11.36673638]
[1770517282480,3.97233366,87.99,87.976,15.100024]
[1770517283478,3.97577155,87.99,87.976,15.100024]
[1770517285174,3.97577155,87.99,87.977,3.73328762]
[1770517286858,3.97577155,88.01,87.977,3.73328762]
[1770517287263,7.50696873,88.01,87.979,3.73328762]
[1770517287981,3.53119718,88.009,87.979,3.73328762]
[1770517289272,3.97577155,88.01,87.981,3.73328762]
[1770517289464,28.39262886,88.052,87.981,3.73328762]
[1770517289465,11.35862604,88.039,87.981,3.73328762]
[1770517289672,3.97577155,88.02,87.981,3.73328762]
[1770517289873,28.38882463,88.063,87.982,3.73328762]
[1770517290071,11.35602266,88.059,87.981,3.73328762]
[1770517290262,3.97577155,88.03,87.984,3.73328762]
[1770517290665,0.1,88.06,87.991,3.73328762]
[1770517290961,3.97577155,88.05,88.004,3.73328762]
[1770517291361,3.97577155,88.05,88.006,3.73328762]
[1770517291577,3.97577155,88.05,88.008,3.73328762]
[1770517291778,4.07577155,88.06,88.009,3.73328762]
[1770517291974,3.97577155,88.05,88.017,3.73328762]
[1770517293484,0.96727737,88.056,88.019,3.73328762]
[1770517294185,3.97577155,88.05,88.019,3.73328762]
[1770517295061,0.96727737,88.056,88.019,3.73328762]
[1770517295379,0.96727737,88.056,88.02,39.76369006]
[1770517295589,0.2,88.07,88.021,3.55556973]
[1770517295765,1e-08,88.07,88.034,3.55556973]
[1770517296163,0.2,88.08,88.035,3.55556973]
[1770517296368,0.2,88.08,88.041,3.55556973]
[1770517297565,0.2,88.08,88.043,3.55556973]
[1770517298394,4.17577155,88.08,88.043,3.55556973]
[1770517298988,1.13913391,88.079,88.045,3.55556973]
[1770517300083,0.2,88.08,88.046,3.729954]
[1770517300387,0.1,88.09,88.054,3.729954]
[1770517300985,0.1,88.09,88.056,3.729954]
[1770517302177,4.07577155,88.09,88.056,3.729954]
[1770517302375,3.97577155,88.08,88.056,3.729954]
[1770517302969,0.1,88.09,88.061,3.729954]
[1770517303485,4.07577155,88.09,88.061,3.729954]
[1770517304988,4.07577155,88.09,88.063,3.729954]
[1770517306994,0.1,88.09,88.065,3.729954]
[1770517307394,4.07577155,88.09,88.065,3.729954]
[1770517307788,3.97577155,88.08,88.065,3.729954]
[1770517307988,4.07577155,88.09,88.065,3.729954]
[1770517308376,3.97577155,88.08,88.064,11.3553779]
[1770517309301,3.97577155,88.08,88.062,3.729954]
[1770517309492,4.07577155,88.09,88.062,3.729954]
[1770517309796,4.07577155,88.09,88.048,3.729954]
[1770517309995,3.97577155,88.08,88.048,3.729954]
[1770517310202,4.07577155,88.09,88.048,3.729954]
[1770517311788,0.1,88.09,88.051,3.729954]
[1770517313294,0.1,88.09,88.053,3.729954]
[1770517314381,0.1,88.09,88.055,3.729954]
[1770517316713,0.1,88.09,88.057,3.729954]
[1770517317579,0.1,88.09,88.061,3.729954]
[1770517318508,0.05888524,88.109,88.064,3.679954]
[1770517318808,0.05888524,88.109,88.066,3.679954]
[1770517320422,15.08434855,88.11,88.066,3.679954]
[1770517320423,0.05500958,88.099,88.066,3.679954]
[1770517320714,11.108577,88.11,88.068,3.679954]
[1770517320715,0.05500958,88.096,88.068,3.679954]
[1770517321713,3.97577155,88.1,88.068,3.679954]
[1770517321888,0.05310508,88.104,88.068,3.679954]
[1770517323514,0.05310508,88.104,88.071,3.679954]
[1770517323688,11.108577,88.11,88.071,3.679954]
[1770517324116,11.15608382,88.11,88.071,3.679954]
[1770517324405,11.108577,88.11,88.071,3.679954]
[1770517325410,0.04750682,88.115,88.069,39.74156627]
[1770517325411,0.04750682,88.115,88.081,3.679954]
[1770517325803,4.07577155,88.13,88.092,3.679954]
[1770517325804,0.04386125,88.128,88.092,3.679954]
[1770517326708,0.1,88.13,88.092,3.679954]
[1770517327813,0.1,88.13,88.094,3.679954]
[1770517328317,0.13854843,88.13,88.094,3.679954]
[1770517328824,0.1,88.13,88.094,3.679954]
[1770517329612,0.13681801,88.13,88.094,3.679954]
[1770517330017,0.03510747,88.129,88.096,3.679954]
[1770517331300,4.07577155,88.13,88.095,39.7298371]
[1770517331301,0.03341657,88.119,88.095,11.35138203]
[1770517332406,0.03341657,88.119,88.094,3.679954]
[1770517334711,0.03341657,88.119,88.095,15.03133603]
[1770517335716,0.03341657,88.119,88.096,3.679954]
[1770517337016,0.03341657,88.119,88.098,3.679954]
[1770517340024,0.03341657,88.119,88.099,11.35086663]
[1770517341631,0.03341657,88.119,88.099,39.72803322]
[1770517341920,0.03341657,88.119,88.1,3.679954]
[1770517342110,4.07577155,88.13,88.1,3.679954]
[1770517343617,4.07577155,88.13,88.102,3.679954]
[1770517343823,3.97577155,88.12,88.102,3.679954]
[1770517344121,4.07577155,88.13,88.102,3.679954]
[1770517345500,3.96374734,88.12,88.093,11.35152746]
[1770517345722,3.96374734,88.11,88.089,3.679954]
[1770517346014,3.96374734,88.12,88.089,3.679954]
[1770517347103,4.06374734,88.13,88.089,3.679954]
[1770517347718,4.06374734,88.13,88.092,3.679954]
[1770517349905,4.06374734,88.13,88.094,3.679954]
[1770517350830,3.96374734,88.14,88.097,3.679954]
[1770517352128,3.96374734,88.14,88.099,3.679954]
[1770517352326,3.96374734,88.13,88.099,3.679954]
[1770517354422,3.96374734,88.12,88.1,15.03069179]
[1770517354627,3.96374734,88.12,88.101,3.679954]
[1770517356506,0.1,88.15,88.068,5.13032502]
[1770517356507,0.1,88.15,88.111,3.679954]
[1770517357026,4.06374734,88.15,88.111,3.679954]
[1770517357614,4.06374734,88.15,88.102,39.72668043]
[1770517357615,0.2680296,88.199,88.13,3.96374734]
[1770517357809,3.96374734,88.28,88.221,5.92931076]
[1770517358014,28.32103998,88.274,88.221,8.88827184]
[1770517358242,3.96374734,88.26,88.222,3.679954]
[1770517358535,3.96374734,88.26,88.224,3.679954]
[1770517359430,3.96374734,88.32,88.251,3.679954]
[1770517359628,11.32845351,88.351,88.261,3.679954]
[1770517359831,3.96374734,88.28,88.261,3.679954]
[1770517360223,3.96374734,88.29,88.261,3.679954]
[1770517360645,3.96374734,88.28,88.261,3.679954]
[1770517360934,3.96374734,88.27,88.261,3.49883676]
[1770517361256,0.16956091,88.279,88.24,11.33261982]
[1770517361413,10.58292074,88.26,88.232,11.33364097]
[1770517362934,10.58292074,88.26,88.233,3.64116501]
[1770517363239,10.58292074,88.26,88.235,3.64116501]
[1770517364038,4.65886807,88.26,88.235,3.64116501]
[1770517365140,4.65886807,88.26,88.237,3.64116501]
[1770517365634,4.65886807,88.26,88.2,67.27183019]
[1770517365635,10.58292074,88.25,88.213,3.64116501]
[1770517365839,10.58292074,88.24,88.22,3.64116501]
[1770517366023,10.58292074,88.25,88.22,3.64116501]
[1770517366336,10.58292074,88.25,88.226,3.64116501]
[1770517367630,10.58292074,88.26,88.228,3.64116501]
[1770517367941,10.58292074,88.25,88.228,3.64116501]
[1770517368116,0.16155487,88.289,88.228,3.64116501]
[1770517368322,10.58292074,88.26,88.228,3.64116501]
[1770517368536,10.58292074,88.27,88.228,3.64116501]
[1770517368844,10.58292074,88.28,88.231,3.64116501]
[1770517369550,0.16039389,88.282,88.233,3.64116501]
[1770517369841,10.58292074,88.28,88.233,3.64116501]
[1770517370252,0.15924623,88.297,88.25,10.58292074]
[1770517370426,0.15924623,88.297,88.251,3.64116501]
[1770517370842,0.15924623,88.317,88.261,3.64116501]
[1770517371227,10.58292074,88.3,88.261,3.64116501]
[1770517371430,10.58292074,88.29,88.261,3.64116501]
[1770517371827,10.58292074,88.29,88.263,3.64116501]
[1770517372022,10.58292074,88.32,88.255,3.64116501]
[1770517372023,0.15699033,88.289,88.255,3.64116501]
[1770517372246,10.58292074,88.3,88.263,3.64116501]
[1770517372620,10.58292074,88.31,88.263,3.64116501]
[1770517373644,10.58292074,88.32,88.263,3.64116501]
[1770517373842,10.58292074,88.31,88.265,3.64116501]
[1770517374044,11.32315463,88.315,88.265,3.64116501]
[1770517374045,10.58292074,88.3,88.265,3.64116501]
[1770517374239,0.15478594,88.307,88.265,3.64116501]
[1770517374445,10.58292074,88.3,88.265,3.64116501]
[1770517374945,10.58292074,88.29,88.265,3.64116501]
[1770517375136,10.58292074,88.31,88.265,3.64116501]
[1770517375929,10.58292074,88.29,88.267,3.64116501]
[1770517378329,10.58292074,88.3,88.269,3.64116501]
[1770517380140,10.58292074,88.3,88.271,3.64116501]
[1770517380558,10.58292074,88.29,88.271,3.64116501]
[1770517380860,12.10670557,88.28,88.244,11.33213664]
[1770517381032,12.10670557,88.28,88.25,11.33140524]
[1770517381236,12.10670557,88.28,88.249,11.33150901]
[1770517381550,3.95035395,88.27,88.249,11.33150901]
[1770517382128,3.95035395,88.27,88.236,28.33299873]
[1770517382542,1.52177504,88.259,88.229,11.33414183]
[1770517382850,1.52177504,88.259,88.23,3.64116501]
[1770517383058,3.95035395,88.25,88.23,3.64116501]
[1770517384059,3.95035395,88.26,88.23,3.64116501]
[1770517384354,3.95035395,88.28,88.232,3.64116501]
[1770517384759,5.47016511,88.27,88.232,3.64116501]
[1770517384931,1.51981116,88.259,88.232,3.64116501]
[1770517385134,3.95035395,88.26,88.232,3.64116501]
[1770517386256,3.95035395,88.27,88.234,3.65558078]
[1770517386457,28.31641899,88.288,88.234,3.65558078]
[1770517386458,3.95035395,88.26,88.234,3.65558078]
[1770517386863,1.51632562,88.266,88.234,3.65558078]
[1770517387046,3.95035395,88.25,88.227,3.65558078]
[1770517387243,3.95035395,88.25,88.229,14.98970419]
[1770517387555,3.95035395,88.26,88.234,3.65558078]
[1770517387750,1.5147771,88.265,88.234,3.65558078]
[1770517387955,3.95035395,88.26,88.234,3.65558078]
[1770517388458,1.51324636,88.259,88.234,3.65558078]
[1770517388775,1.51324636,88.259,88.2,3.95035395]
[1770517388776,1.51324636,88.259,88.231,11.33385153]
[1770517389231,1.51324636,88.259,88.232,3.65558078]
[1770517389431,1.51324636,88.259,88.235,14.98895189]
[1770517389840,1.51173321,88.266,88.236,3.65558078]
[1770517390051,3.95035395,88.26,88.236,3.65558078]
[1770517390257,1.51023744,88.259,88.229,11.33407437]
[1770517390451,1.51023744,88.259,88.23,3.65558078]
[1770517391358,1.51023744,88.259,88.231,11.33388491]
[1770517391539,1.51023744,88.259,88.232,3.65558078]
[1770517393155,3.95035395,88.25,88.231,3.56925376]
[1770517393356,3.95035395,88.26,88.232,11.33375646]
[1770517393658,3.95035395,88.26,88.233,3.56925376]
[1770517394662,1.50301237,88.259,88.234,14.90275331]
[1770517394866,1.50301237,88.259,88.235,3.56925376]
[1770517395541,3.95035395,88.25,88.228,3.56925376]
[1770517396152,3.95035395,88.25,88.232,11.33375534]
[1770517396368,3.95035395,88.25,88.228,3.56925376]
[1770517396969,1.49887346,88.249,88.213,3.56925376]
[1770517397264,1.49887346,88.229,88.203,3.56925376]
[1770517398167,3.95035395,88.22,88.196,3.56925376]
[1770517398460,3.95035395,88.22,88.198,3.56925376]
[1770517398868,5.44787935,88.23,88.2,3.56925376]
[1770517399070,1.49619282,88.229,88.2,3.56925376]
[1770517399363,3.95035395,88.22,88.2,3.56925376]
[1770517399743,5.44654677,88.21,88.17,3.56925376]
[1770517399944,3.95035395,88.2,88.183,14.90919895]
[1770517400470,1.49619282,88.21,88.169,28.35461343]
[1770517400471,5.44654677,88.21,88.188,11.33941079]
[1770517400670,1.49487554,88.228,88.196,3.56925376]
[1770517401284,3.95035395,88.22,88.185,3.56925376]
[1770517402143,3.95035395,88.22,88.163,56.71308907]